{"text_format":"3","workbook":"xlsx","n_sheets":1,"sheets":["Лист1"],"not_rendered":{"defined_names":1},"read":"whole","date_system":"1900"}

{"sheet":"Лист1","index":0,"n_rows":37,"n_cols":15,"rows_kept":37,"merged":[[8,0,8,13],[10,0,12,0],[10,1,12,1],[10,2,12,2],[10,3,10,13],[11,3,12,3],[11,4,12,4],[11,5,12,5],[11,6,12,6],[11,7,12,7],[11,8,12,8],[11,9,12,9],[11,10,12,10],[11,11,12,11],[11,12,11,13],[14,0,14,13],[21,0,21,13],[32,0,33,0],[32,16,33,16],[36,6,36,8]]}
[{"$nulls":13},"Приложение 1"]
[{"$nulls":13},"к постановлению администрации города Усолье-Сибирское"]
[{"$nulls":13},"от 26.12.2025 г. №2475-па"]
[]
[{"$nulls":13},"«Приложение 1"]
[{"$nulls":13},"к муниципальной программе города Усолье-Сибирское "]
[{"$nulls":13},"Безопасность дорожного движения города Усолье-Сибирское на 2019-2027 годы"]
[]
["Сведения о составе и значениях целевых показателей муниципальной программы города Усолье-Сибирское \n\"Безопасность дорожного движения города Усолье-Сибирское\" на 2019-2027 годы"]
[]
["№ пп","Наименование целевого показателя ","Ед. \nизм.","Значения целевых показателей"]
[{"$nulls":3},"2017 год","2018 год","2019 год","2020 год","2021 год","2022 год","2023 год","2024 год","2025 год ","плановый период"]
[{"$nulls":12},"2026 год (прогноз)","2027 год (прогноз)"]
[1,2,3,4,5,6,7,8,9,10,11,12,13,14]
["Муниципальная программа города Усолье-Сибирское \"Безопасность дорожного движения города Усолье-Сибирское\" на 2019-2027 годы"]
[1,"Доля светофорных объектов, в отношении которых выполнен плановый ремонт и проведено обслуживание, в общем количестве светофорных объектов","% ",100,100,100,100,100,100,100,100,100,100,100]
[2,"Доля систем видеонаблюдения, в отношении которых проведены работы по техническому обслуживанию и монтажу, в общем количестве систем видеонаблюдения","% ",100,100,100,100,100,100,100,100,100,100,100]
[3,"Доля дорожных знаков, в отношении которых выполнен плановый ремонт и проведено обслуживание, в общем количестве дорожных знаков","%",11,7,9.4,4.8,6.5,3.3,{"$f":"ROUND(J25*100/3150,1)","v":3.4},{"$f":"ROUND(K25*100/3150,1)","v":3.6},{"$f":"ROUND(L25*100/3150,1)","v":3.6},{"$f":"ROUND(M25*100/3150,1)","v":3.6},3.6]
[4,"Доля нанесенной дорожной разметки в общем количестве необходимой дорожной разметки","% ",8.6,7.2,{"v":8.4,"d":"8.40"},{"v":8.6,"d":"8.60"},{"v":18.4,"d":"18.40"},{"v":22.7,"d":"22.70"},{"$f":"ROUND(J26*100/66100,2)","v":{"v":13.3,"d":"13.30"}},{"$f":"ROUND(K26*100/66100,2)","v":11.81},{"$f":"ROUND(L26*100/66100,2)","v":16.31},5.62,{"$f":"ROUND(N26*100/66100,2)","v":5.62}]
[5,"Количество приобретенных учебно-методических, наглядных пособий, поощрительных призов, освещающих вопросы безопасности дорожного движения","ед.",2211,2188,2100,584,12,394,{"$f":"J27","v":218},{"$f":"K27","v":88},{"$f":"L27","v":88},88,{"$f":"N27","v":88}]
[6,"Количество обустроенных пешеходных переходов","ед.",1,1,6,1,1,0,{"$f":"J29","v":1},{"$f":"K29","v":0},{"$f":"L29","v":0},0,{"$f":"N29","v":0}]
["Подпрограмма \"Повышение безопасности дорожного движения города Усолье-Сибирское\" на 2019-2027 годы"]
[1,"Количество светофорных объектов, устройство, содержание и ремонт которых выполнен ","ед.",8,8,8,8,8,8,8,8,16,16,16]
[2,"Количество светофоров, устройство, содержание и ремонт которых выполнен ","ед.","-","-","-","-","-","-","-",20,0,0,0]
[3,"Количество дорожных знаков, которые приведены в соответствие и содержатся согласно ГОСТ Р 52289-2019","ед.",342,220,296,150,206,105,106,113,113,113,113]
[4,"Количество нанесенной дорожной разметки","м2",{"v":4068,"d":"4,068.00"},{"v":4760,"d":"4,760.00"},{"v":5559.5,"d":"5,559.50"},{"v":5672.85,"d":"5,672.85"},{"v":12141.6,"d":"12,141.60"},{"v":15008,"d":"15,008.00"},{"$f":"(77.67374*1000)*0.1+1022","v":{"v":8789.374,"d":"8,789.37"}},{"v":7805,"d":"7,805.0"},{"v":10778,"d":"10,778.0"},{"v":3715,"d":"3,715.0"},{"v":3715,"d":"3,715.0"}]
[5,"Количество приобретенных учебно-методических, наглядных пособий, поощрительных призов, освещающих вопросы безопасности дорожного движения","ед.",2211,2188,2100,584,12,394,218,88,88,88,88]
[6,"Количество систем видеонаблюдения, на которых выполнены работы по техническому обслуживанию и монтажу","ед.",7,8,8,13,6,6,6,6,6,6,6]
[7,"Количество обустроенных пешеходных переходов","ед.",1,1,6,1,1,0,1,0,0,0,0]
[8,"Количество установленных дорожных ограждений","п. м.",0,0,499.5,0,0,0,0,0,0,0,0]
[9,"Количество обустроенных искусственных дорожных неровностей на автомобильных дорогах города","ед.",0,0,1,0,3,6,0,0,0,0,0]
[10,"Количество обустроенных остановочных пунктов города","ед.",0,0,0,1,0,0,0,0,0,0,0]
[11,"Количество модернизированных нерегулируемых пешеходных переходов, прилегающих непосредственно к образовательным организациям.","ед.","-","-",0,0,0,5,0,0,1,0,0]
[null,"Количество ликвидированных мест концентрации дорожно-транспортных происшествий на автомобильных дорогах общего пользования местного значения","ед.","-","-",0,0,0,1,0,0,1,0,0]
[12,"Количество разработанной проектно-сметной документации","ед.","-","-","-","-","-","-","-","-",1,0,0,"»."]
[]
[null,"Мэр города ",{"$nulls":4},"М.В. Торопкин"]